bitfinex-derivatives/quotes_SOLF0:USTF0_20260218
["timestamp","ask_amount","ask_price","bid_price","bid_amount"]
[1771440067350,11.0377,81.576,81.551,81.95592525]
[1771440067754,11.0377,81.576,81.552,77.1]
[1771440068556,0.07740073,81.578,81.552,77.1]
[1771440069545,11.0375,81.577,81.552,77.1]
[1771440070351,0.07740073,81.578,81.551,81.95592525]
[1771440070352,11.0385,81.57,81.551,62.59682525]
[1771440070552,0.07740073,81.578,81.446,30.06159997]
[1771440070855,9.694625,81.577,81.53,3.07821441]
[1771440071056,3.07821441,81.58,81.531,77.1]
[1771440071258,3.07821441,81.58,81.53,3.07821441]
[1771440071556,0.07736865,81.562,81.532,77.1]
[1771440072455,0.07736865,81.562,81.533,62.69642845]
[1771440073153,0.07736865,81.562,81.485,12.25]
[1771440073154,3.07821441,81.55,81.501,62.66203921]
[1771440073455,0.07736865,81.562,81.503,62.66203921]
[1771440073456,3.07821441,81.54,81.503,62.66203921]
[1771440073655,3.07821441,81.54,81.504,77.12]
[1771440073854,11.0447,81.524,81.481,62.66861525]
[1771440074056,11.0447,81.524,81.483,62.66861525]
[1771440074456,11.0447,81.524,81.485,62.66861525]
[1771440074761,11.0456,81.517,81.485,62.66861525]
[1771440074956,3.07821441,81.53,81.486,139.96641717]
[1771440075157,3.07821441,81.53,81.487,62.84641717]
[1771440076560,3.07821441,81.53,81.488,77.12]
[1771440076762,3.07821441,81.5,81.455,62.86055409]
[1771440076957,3.07821441,81.5,81.457,62.96142687]
[1771440077659,11.0489,81.493,81.457,62.96142687]
[1771440078361,36.7,81.561,81.471,62.96809802]
[1771440078661,171.6667,81.591,81.471,62.96809802]
[1771440078662,3.07821441,81.53,81.472,77.12]
[1771440078868,122.07821441,81.53,81.473,62.99149105]
[1771440079057,3.07821441,81.52,81.475,62.99149105]
[1771440079258,122.07821441,81.53,81.48,3.07821441]
[1771440079458,122.07821441,81.53,81.475,62.99149105]
[1771440079663,11.0452,81.52,81.475,62.99149105]
[1771440079961,122.07821441,81.53,81.475,62.99149105]
[1771440080665,0.07871238,81.511,81.475,62.99149105]
[1771440080866,0.07871238,81.511,81.476,77.12]
[1771440081060,0.07871238,81.511,81.477,62.88156614]
[1771440082362,0.07871238,81.511,81.478,77.12]
[1771440082562,0.07871238,81.511,81.479,62.88758873]
[1771440085266,119.0,81.563,81.48,77.12]
[1771440085464,8.25867386,81.56,81.482,62.86002023]
[1771440085659,8.25867386,81.56,81.484,62.86002023]
[1771440086154,8.25867386,81.56,81.486,62.86570978]
[1771440086356,8.25867386,81.54,81.486,62.86570978]
[1771440086962,11.0454,81.519,81.486,62.86570978]
[1771440087565,11.0454,81.519,81.494,0.07805354]
[1771440089173,77.12,81.539,81.494,0.07805354]
[1771440090675,11.0462,81.513,81.494,0.07805354]
[1771440091569,11.047,81.507,81.494,0.07805354]
[1771440091768,11.047,81.507,81.471,62.68640704]
[1771440092672,11.0458,81.516,81.471,62.68640704]
[1771440094171,77.12,81.522,81.471,62.68640704]
[1771440095269,11.0474,81.504,81.471,62.68640704]
[1771440099678,11.0463,81.512,81.471,62.68640704]
[1771440100580,11.0472,81.505,81.471,62.68640704]
[1771440100778,77.12,81.522,81.471,62.68640704]
[1771440101175,8.25867386,81.54,81.473,62.78578665]
[1771440101678,11.0452,81.52,81.473,62.78578665]
[1771440102079,11.0452,81.52,81.475,62.79012222]
[1771440102679,0.07839337,81.505,81.475,62.79012222]
[1771440102875,11.0452,81.52,81.475,62.79012222]
[1771440103984,11.0442,81.528,81.477,62.76125031]
[1771440104182,3.08332506,81.54,81.481,62.76125031]
[1771440104385,3.08332506,81.55,81.491,62.76125031]
[1771440104585,3.08332506,81.55,81.493,62.76125031]
[1771440104791,3.08332506,81.54,81.493,62.76125031]
[1771440105386,3.08332506,81.54,81.495,62.78239982]
[1771440105885,3.08194705,81.54,81.495,62.78239982]
[1771440106381,11.0407,81.553,81.501,62.79168982]
[1771440106684,3.08194705,81.55,81.503,62.79168982]
[1771440107982,3.08194705,81.55,81.518,0.07801465]
[1771440108286,3.08194705,81.56,81.519,62.59247484]
[1771440110292,3.08194705,81.55,81.493,62.636901]
[1771440110494,3.08194705,81.54,81.495,62.636901]
[1771440111392,3.08194705,81.54,81.497,62.62836301]
[1771440111582,11.043,81.537,81.498,62.62836301]
[1771440112987,3.08194705,81.54,81.498,62.62836301]
[1771440113193,3.08194705,81.53,81.498,62.62836301]
[1771440115292,11.0438,81.531,81.498,62.62836301]
[1771440118691,3.08194705,81.53,81.498,62.62836301]
[1771440118990,3.08194705,81.53,81.506,0.07785691]
[1771440119694,11.0441,81.528,81.506,0.07785691]
[1771440120997,119.0,81.557,81.506,0.07785691]
[1771440120998,3.08194705,81.52,81.506,0.07785691]
[1771440121199,119.0,81.502,81.46,3.08194705]
[1771440121398,3.08194705,81.5,81.45,3.08194705]
[1771440122696,11.0487,81.495,81.45,3.08194705]
[1771440123198,11.0475,81.503,81.451,53.01846648]
[1771440123491,3.08194705,81.51,81.451,53.01846648]
[1771440123693,3.08194705,81.5,81.453,53.01846648]
[1771440123997,11.0502,81.483,81.453,53.01846648]
[1771440125393,0.07782875,81.485,81.453,53.01846648]
[1771440125394,11.051,81.477,81.453,53.01846648]
[1771440128898,119.0,81.476,81.453,53.01846648]
[1771440129600,0.07782875,81.485,81.453,53.01846648]
[1771440130789,0.07782875,81.485,81.44,3.08194705]
[1771440130790,27.50473874,81.485,81.44,30.82355371]
[1771440130998,3.08194705,81.45,81.425,2.097e-05]
[1771440131292,11.0574,81.43,81.425,2.097e-05]
[1771440131493,3.08194705,81.43,81.397,27.74160666]
[1771440131694,80.22194705,81.43,81.37,3.08194705]
[1771440131900,11.0632,81.387,81.375,9.032e-05]
[1771440132298,3.08194705,81.4,81.375,9.032e-05]
[1771440132601,77.14,81.406,81.375,9.032e-05]
[1771440133002,3.08194705,81.4,81.375,9.032e-05]
[1771440133400,77.14,81.405,81.375,9.032e-05]
[1771440133707,12.49760926,81.448,81.375,9.032e-05]
[1771440133708,30.50885704,81.43,81.376,27.74160666]
[1771440134001,11.0584,81.423,81.376,27.74160666]
[1771440135910,0.07740034,81.408,81.376,27.74160666]
[1771440137406,0.07740034,81.408,81.375,9.032e-05]
[1771440138895,11.0606,81.407,81.375,9.032e-05]
[1771440139505,0.07740034,81.408,81.375,9.032e-05]
[1771440139506,29.0466993,81.406,81.375,9.032e-05]
[1771440139709,29.0466993,81.389,81.33,28.97390252]
[1771440140002,11.0635,81.385,81.33,28.97390252]
[1771440140605,11.0647,81.377,81.33,28.97390252]
[1771440140798,40.1113993,81.377,81.33,28.97390252]
[1771440140997,29.0466993,81.377,81.33,28.97390252]
[1771440141197,11.0689,81.346,81.325,6.357e-05]
[1771440141502,77.14,81.345,81.325,6.357e-05]
[1771440141698,29.0466993,81.359,81.325,6.357e-05]
[1771440141899,77.14,81.358,81.325,6.357e-05]
[1771440142398,29.0466993,81.353,81.289,28.97390252]
[1771440142603,8.27936579,81.36,81.289,28.97390252]
[1771440142813,29.0466993,81.372,81.3,8.27936579]
[1771440143117,29.0466993,81.372,81.31,28.97390252]
[1771440143410,106.2066993,81.387,81.31,28.97390252]
[1771440143606,29.0466993,81.387,81.322,28.97390252]
[1771440144005,29.0466993,81.387,81.303,77.14]
[1771440144006,29.0466993,81.387,81.335,28.97390252]
[1771440145913,29.0466993,81.384,81.335,28.97390252]
[1771440146315,29.0466993,81.379,81.317,28.97390252]
[1771440146716,29.0466993,81.377,81.301,28.97390252]
[1771440147114,11.067,81.359,81.303,28.97390252]
[1771440147609,29.0466993,81.358,81.303,28.97390252]
[1771440147815,29.0466993,81.356,81.303,28.97390252]
[1771440148515,29.0466993,81.354,81.303,28.97390252]
[1771440150007,29.0466993,81.354,81.304,28.97390252]
[1771440150616,29.0466993,81.354,81.306,28.97390252]
[1771440150815,29.0466993,81.354,81.293,28.97390252]
[1771440151316,29.0466993,81.354,81.295,28.97390252]
[1771440151915,8.27936579,81.36,81.298,28.97390252]
[1771440152313,29.0466993,81.368,81.298,28.97390252]
[1771440152715,29.0466993,81.359,81.284,28.97390252]
[1771440153022,29.0466993,81.354,81.284,28.97390252]
[1771440153407,29.0466993,81.354,81.286,11.0769]
[1771440153612,29.0466993,81.354,81.287,28.97390252]
[1771440154224,29.0466993,81.369,81.297,28.97390252]
[1771440154519,29.0466993,81.367,81.297,28.97390252]
[1771440154914,29.0466993,81.367,81.306,11.0741]
[1771440155107,29.0466993,81.367,81.307,28.97390252]
[1771440156317,29.0466993,81.365,81.307,28.97390252]
[1771440156712,29.0466993,81.363,81.307,28.97390252]
[1771440158815,40.1133993,81.362,81.307,28.97390252]
[1771440159023,29.0466993,81.362,81.307,28.97390252]
[1771440159519,29.0466993,81.359,81.277,28.97390252]
[1771440159716,22.1287,81.379,81.277,28.97390252]
[1771440159717,29.0466993,81.339,81.277,28.97390252]
[1771440159915,29.0466993,81.354,81.277,28.97390252]
[1771440160315,29.0466993,81.354,81.286,28.97390252]
[1771440160822,29.0466993,81.354,81.292,28.97390252]
[1771440161718,29.0466993,81.354,81.296,28.97390252]
[1771440162122,29.0466993,81.371,81.3,28.97390252]
[1771440162714,29.0466993,81.353,81.3,28.97390252]
[1771440164911,28.43432055,81.339,81.286,28.97390252]
[1771440166622,77.16,81.338,81.286,28.97390252]
[1771440166824,11.0715,81.327,81.286,28.97390252]
[1771440169214,8.30010899,81.32,81.275,5.16764073]
[1771440169409,28.43432055,81.299,81.247,30.87422834]
[1771440169609,36.91,81.342,81.247,30.87422834]
[1771440169610,8.30010899,81.32,81.247,30.87422834]
[1771440169811,8.30010899,81.32,81.25,30.87422834]
[1771440170017,28.43432055,81.319,81.25,30.87422834]
[1771440170218,8.30010899,81.3,81.25,30.87422834]
[1771440170521,8.30010899,81.26,81.239,7.447e-05]
[1771440170734,8.30010899,81.22,81.175,5.17400678]
[1771440171020,8.30010899,81.22,81.125,5.17719569]
[1771440171021,8.30010899,81.19,81.145,2.416e-05]
[1771440171218,8.30010899,81.18,81.125,5.17719569]
[1771440171418,36.91,81.21,81.125,5.17719569]
[1771440171419,8.30010899,81.16,81.125,5.17719569]
[1771440171723,77.18,81.159,81.125,5.17719569]
[1771440172318,28.43432055,81.139,81.003,172.9092]
[1771440172517,77.18,81.158,81.003,77.18]
[1771440172815,77.18,81.158,80.976,172.9676]
[1771440172816,8.30010899,81.06,80.88,173.1733]
[1771440173022,172.7416,81.083,80.882,173.169]
[1771440173223,28.43432055,81.049,80.94,30.87422834]
[1771440173420,172.7644,81.072,80.869,11.1339]
[1771440173421,8.30010899,81.05,80.869,11.1339]
[1771440173615,172.7959,81.057,80.86,173.2165]
[1771440173821,11.1062,81.072,80.88,8.30010899]
[1771440174016,28.43432055,81.023,80.93,8.30010899]
[1771440174223,80.2,81.042,80.904,79.18]
[1771440174518,28.43432055,81.063,80.99,8.30010899]
[1771440174919,31.60879546,81.109,80.98,79.28]
[1771440175113,36.60879546,81.085,80.941,173.0426]
[1771440175316,36.60879546,81.085,80.897,519.409]
[1771440175317,36.60879546,81.085,80.97,8.30010899]
[1771440175517,31.60879546,81.083,80.97,8.30010899]
[1771440175719,31.60879546,81.069,80.971,1.70577618]
[1771440175913,31.6130987,81.059,80.971,1.70577618]
[1771440176126,31.6130987,81.049,80.951,1.81256208]
[1771440176317,5.0,81.085,80.991,6.53256208]
[1771440176515,5.0,81.085,81.03,8.30010899]
[1771440176717,5.0,81.085,81.011,6.53256208]
[1771440176920,8.30010899,81.05,80.969,17.83987816]
[1771440177125,5.0,81.085,80.98,8.30010899]
[1771440177318,5.0,81.035,80.981,17.83987816]
[1771440177924,5.0,81.085,80.951,80.14]
[1771440177925,5.0,81.085,80.991,18.24091208]
[1771440178124,5.0,81.085,81.011,18.24091208]
[1771440178320,5.0,81.085,81.03,8.30010899]
[1771440178523,5.0,81.085,81.031,18.24091208]
[1771440178725,5.0,81.085,81.05,8.30010899]
[1771440179125,5.0,81.085,81.01,25.24302889]
[1771440179321,5.0,81.085,81.011,16.9429199]
[1771440179527,34.68522245,81.085,81.011,16.9429199]
[1771440179832,29.68522245,81.069,80.991,16.9429199]
[1771440181630,5.0,81.085,81.011,15.64587834]
[1771440183030,5.0,81.085,81.01,8.30010899]
[1771440183031,5.0,81.085,81.031,15.33194246]
[1771440184621,5.0,81.085,81.011,15.440387]
[1771440184822,29.68522245,81.083,81.011,15.440387]
[1771440185432,11.1053,81.079,81.011,15.440387]
[1771440186033,5.0,81.085,81.021,16.94333994]
[1771440186228,29.68522245,81.084,81.021,16.94333994]
[1771440186423,5.0,81.085,81.021,16.94333994]
[1771440186625,5.0,81.085,81.03,8.30010899]
[1771440186829,5.0,81.085,81.031,15.97786031]
[1771440187341,29.68522245,81.122,81.051,15.97786031]
[1771440187729,29.68522245,81.122,80.8,37.51849659]
[1771440187730,29.68522245,81.099,81.029,13.11786031]
[1771440188429,29.68522245,81.079,81.006,13.27540074]
[1771440188836,29.68522245,81.079,80.985,2.14696864]
[1771440189036,29.68522245,81.077,80.981,12.37469641]
[1771440189238,29.68522245,81.077,80.975,5.18678605]
[1771440189239,8.30010899,81.02,80.975,7.33417201]
[1771440189443,8.30010899,81.02,80.876,173.1811]
[1771440189444,29.68522245,80.999,80.895,11.1304]
[1771440189634,8.30010899,81.01,80.926,19.70886842]
[1771440189832,29.68522245,81.019,80.926,19.70886842]
[1771440190737,29.68522245,81.037,80.931,19.89104564]
[1771440190940,29.68522245,81.062,80.951,18.75362575]
[1771440191139,29.68522245,81.062,80.971,18.75362575]
[1771440191338,29.68522245,81.084,80.981,18.75362575]
[1771440191740,29.68522245,81.082,80.981,18.75362575]
[1771440192340,29.68522245,81.082,80.991,18.85491895]
[1771440193146,5.0,81.085,80.993,18.37495963]
[1771440193341,5.0,81.085,80.995,18.37495963]
[1771440193551,5.0,81.085,81.011,18.37495963]
[1771440194242,5.0,81.085,81.031,18.47280989]
[1771440194643,5.0,81.085,80.986,2.14713422]
[1771440194644,34.68522245,81.085,81.008,18.47280989]
[1771440194947,34.68522245,81.085,80.986,2.14713422]
[1771440194948,5.0,81.085,81.011,20.80558556]
[1771440195335,172.4946,81.199,80.986,2.14713422]
[1771440195336,32.03054483,81.099,80.987,15.80558556]
[1771440195543,32.03054483,81.079,80.987,15.80558556]
[1771440196447,32.03054483,81.069,80.987,15.80558556]
[1771440197039,32.03054483,81.09,80.987,15.80558556]
[1771440197237,32.03054483,81.079,80.987,15.80558556]
[1771440198245,32.03054483,81.1,80.991,16.26089113]
[1771440198441,32.03054483,81.1,80.993,16.26089113]
[1771440198642,32.03054483,81.1,81.001,16.26089113]
[1771440199438,32.03054483,81.089,80.976,16.03163335]
[1771440199645,32.03054483,81.069,80.976,16.03163335]
[1771440200549,32.03054483,81.069,80.978,16.12883756]
[1771440201144,32.02959899,81.07,80.978,16.12883756]
[1771440201145,32.03054483,81.068,80.978,16.12883756]
[1771440201548,32.03054483,81.068,80.975,5.18678605]
[1771440201744,32.03054483,81.048,80.975,5.18678605]
[1771440203955,11.1102,81.043,80.975,5.18678605]
[1771440204152,32.03054483,81.042,80.975,5.18678605]
[1771440206448,172.6532,81.124,80.975,5.18678605]
[1771440206449,32.03054483,81.069,80.976,15.42565861]
[1771440206847,32.03054483,81.069,80.987,15.89323418]
[1771440207556,32.03054483,81.067,80.987,15.89323418]
[1771440207954,11.1071,81.066,80.987,15.89323418]
[1771440208158,32.03054483,81.065,80.987,15.89323418]
[1771440208658,32.02959899,81.07,80.976,15.9783456]
[1771440208659,32.03054483,81.052,80.976,15.9783456]
[1771440209252,32.03054483,81.044,80.976,15.9783456]
[1771440209850,11.11,81.044,80.976,15.9783456]
[1771440210055,32.03054483,81.043,80.976,15.9783456]
[1771440210251,32.03054483,81.043,80.975,5.18678605]
[1771440210657,11.1089,81.053,80.976,16.02883911]
[1771440210857,32.03054483,81.052,80.976,16.02883911]
[1771440211368,32.03054483,81.069,80.979,15.8962038]
[1771440211855,32.03054483,81.042,80.979,15.8962038]
[1771440212859,22.2062,81.095,80.979,15.8962038]
[1771440212860,8.35939784,81.07,80.979,15.8962038]
[1771440213066,32.03054483,81.069,80.979,15.8962038]
[1771440213360,11.1081,81.059,80.985,15.65085477]
[1771440213562,32.03054483,81.069,80.985,15.65085477]
[1771440213760,32.03054483,81.069,80.996,15.65085477]
[1771440213761,11.1082,81.058,80.996,15.65085477]
[1771440214059,32.03054483,81.091,81.0,8.35939784]
[1771440214267,32.03054483,81.088,81.002,15.72892175]
[1771440214460,32.03054483,81.088,81.004,15.72892175]
[1771440214656,11.1066,81.07,81.004,15.72892175]
[1771440214868,32.03054483,81.088,81.006,16.64992422]
[1771440215258,32.03054483,81.088,81.008,16.64992422]
[1771440215559,32.03054483,81.069,80.991,16.64992422]
[1771440215765,32.03054483,81.059,80.991,16.64992422]
[1771440216264,32.03054483,81.057,80.991,16.64992422]
[1771440216464,32.03054483,81.055,80.975,5.18678605]
[1771440216664,32.03054483,81.053,80.975,5.18678605]
[1771440216865,32.03054483,81.051,80.976,16.72711895]
[1771440217065,32.03054483,81.049,80.976,16.72711895]
[1771440217267,32.03054483,81.047,80.976,16.72711895]
[1771440217570,32.03054483,81.045,80.976,16.72711895]
[1771440217865,10.28717454,81.044,80.976,16.72711895]
[1771440218067,10.28717454,81.043,80.976,16.72711895]
[1771440218265,32.03054483,81.045,80.976,16.72711895]
[1771440218266,10.28717454,81.042,80.976,16.72711895]
[1771440218566,11.1121,81.029,80.979,11.1188]
[1771440219163,32.03054483,81.019,80.94,17.89219094]
[1771440219570,8.35939784,81.02,80.94,17.89219094]
[1771440219571,32.03054483,81.017,80.94,17.89219094]
[1771440219767,32.03054483,81.015,80.94,17.89219094]
[1771440219966,11.1149,81.009,80.95,11.1229]
[1771440220367,32.03054483,81.015,80.95,11.1229]
[1771440220770,32.03054483,81.039,80.951,21.78340533]
[1771440220968,32.03054483,81.037,80.953,21.78340533]
[1771440221168,32.03054483,81.035,80.953,21.78340533]
[1771440221366,11.1123,81.028,80.974,21.78340533]
[1771440221565,32.03054483,81.035,80.974,21.78340533]
[1771440221772,11.1121,81.029,80.976,11.1193]
[1771440221973,11.1121,81.029,80.958,84.82]
[1771440221974,32.03054483,81.053,80.977,21.85755094]
[1771440222171,42.29214702,81.052,80.977,21.85755094]
[1771440222472,42.29214702,81.052,80.933,209.97]
[1771440222473,32.03054483,81.039,80.959,21.85755094]
[1771440222672,32.03054483,81.037,80.959,21.85755094]
[1771440222870,32.03054483,81.035,80.961,18.56654579]
[1771440223171,32.03054483,81.054,80.961,18.56654579]
[1771440223367,11.1107,81.039,80.982,18.56654579]
[1771440223578,32.03054483,81.052,80.982,18.56654579]
[1771440224870,32.03054483,81.052,80.986,18.63523496]
[1771440225068,33.92951164,81.076,80.986,18.63523496]
[1771440225267,8.35939784,81.08,80.998,23.89877619]
[1771440225268,11.1081,81.058,80.998,23.89877619]
[1771440225865,33.92951164,81.057,80.973,23.97289594]
[1771440226065,33.92951164,81.041,80.952,23.97289594]
[1771440226270,33.92951164,81.041,80.971,23.97289594]
[1771440227070,33.92951164,81.041,80.981,25.08739631]
[1771440228075,172.8953,81.011,80.922,7.507e-05]
[1771440228278,518.5431,81.033,80.88,32.76750443]
[1771440228279,22.70353744,80.969,80.88,32.76750443]
[1771440228671,22.70353744,80.969,80.891,32.76750443]
[1771440228875,11.1208,80.966,80.909,32.76750443]
[1771440229075,22.70353744,80.969,80.909,32.76750443]
[1771440229270,22.84683443,81.004,80.909,32.76750443]
[1771440229474,22.06874875,81.057,80.876,84.54]
[1771440229475,22.84683443,81.047,80.951,32.76750443]
[1771440229680,22.84683443,81.068,80.971,32.76750443]
[1771440229976,11.1081,81.059,80.998,11.1163]
[1771440230177,22.84683443,81.068,80.998,11.1163]
[1771440230573,33.95363443,81.068,81.006,11.1152]
[1771440230977,22.84683443,81.068,80.992,32.76750443]
[1771440231275,22.84683443,81.068,81.01,8.35428971]
[1771440231477,24.56081913,81.089,81.011,32.76750443]
[1771440231681,24.56081913,81.083,81.011,32.76750443]
[1771440232082,24.56081913,81.083,81.022,11.113]
[1771440232477,24.56081913,81.083,81.011,32.76750443]
[1771440232788,35.66561913,81.083,81.011,32.76750443]
[1771440232974,24.56081913,81.083,81.011,32.76750443]
[1771440233172,11.1051,81.08,81.02,11.1132]
[1771440233370,11.1051,81.08,81.011,32.76750443]
[1771440233578,24.56081913,81.083,81.011,32.76750443]
[1771440233982,11.1049,81.082,81.012,32.76750443]
[1771440234476,36.91,81.122,80.786,75.75820278]
[1771440234477,36.03014963,81.052,80.986,11.1178]
[1771440234678,24.92114963,81.072,80.987,32.76750443]
[1771440235079,11.1077,81.062,80.989,32.76750443]
[1771440235385,24.92114963,81.072,81.001,32.76750443]
[1771440236586,24.92114963,81.072,81.0,8.35428971]
[1771440236587,24.92114963,81.072,81.004,32.76750443]
[1771440237280,25.78574598,81.084,81.006,32.76750443]
[1771440237781,8.35428971,81.1,81.006,32.76750443]
[1771440237782,25.89100264,81.082,81.006,32.76750443]
[1771440238986,25.89100264,81.082,81.009,36.05260933]
[1771440240085,25.89100264,81.082,81.01,11.1146]
[1771440240273,25.89100264,81.082,81.021,36.05260933]
[1771440240474,25.89100264,81.082,81.001,36.05260933]
[1771440240877,26.36157411,81.069,81.001,36.05260933]
[1771440241285,26.36157411,81.067,80.98,44.40689904]
[1771440241584,26.36157411,81.067,80.896,173.1383]
[1771440241585,26.36157411,81.048,80.96,8.35428971]
[1771440241886,26.36157411,81.046,80.961,36.05260933]
[1771440242084,26.36157411,81.046,80.971,36.05260933]
[1771440242991,9.80067854,81.059,80.981,36.05260933]
[1771440243185,26.93772882,81.065,80.981,36.05260933]
[1771440243380,26.93772882,81.065,80.984,36.05260933]
[1771440243778,26.93772882,81.065,80.998,36.05260933]
[1771440243982,11.15162953,81.104,80.998,36.05260933]
[1771440243983,36.84262382,81.084,81.01,8.35428971]
[1771440244179,27.04194528,81.084,81.011,36.05260933]
[1771440244989,8.35428971,81.1,81.011,36.05260933]
[1771440244990,27.06686932,81.08,81.011,36.05260933]
[1771440245193,27.06686932,81.08,80.99,8.35428971]
[1771440245194,27.06686932,81.078,80.99,44.40689904]
[1771440245398,11.15162953,81.104,80.905,173.1197]
[1771440245399,11.1116,81.033,80.97,8.35428971]
[1771440245687,11.1116,81.033,80.97,44.40689904]
[1771440246084,27.06686932,81.041,80.972,36.05260933]
[1771440246987,11.1097,81.047,80.976,36.05260933]
[1771440247885,11.1084,81.056,80.99,8.35428971]
[1771440248089,8.35428971,81.08,80.991,36.05260933]
[1771440248389,11.1083,81.057,80.994,36.05260933]
[1771440249093,11.1071,81.066,80.996,36.05260933]
[1771440249587,11.1092,81.051,80.996,36.05260933]
[1771440249787,8.35428971,81.08,80.996,36.05260933]
[1771440250694,11.108,81.059,81.0,36.05260933]
[1771440251396,11.1093,81.05,80.995,36.05260933]
[1771440251796,11.1093,81.05,80.997,36.05260933]
[1771440252089,8.35428971,81.08,80.997,36.05260933]
[1771440252291,28.13719015,81.079,81.001,36.05260933]
[1771440252590,11.1094,81.049,81.001,36.05260933]
[1771440252796,28.13719015,81.079,81.001,36.05260933]
[1771440253295,11.1077,81.061,81.004,36.05260933]
[1771440253989,11.1077,81.061,81.008,36.05260933]
[1771440254194,11.1067,81.069,81.008,36.05260933]
[1771440254799,11.1067,81.069,81.011,36.05260933]
[1771440255589,28.13719015,81.079,81.012,11.1143]
[1771440255897,28.13719015,81.079,81.013,35.28284216]
[1771440256297,29.09485678,81.078,81.0,8.35428971]
[1771440256493,29.09485678,81.078,80.992,35.28284216]
[1771440257090,29.11377489,81.061,80.992,35.28284216]
[1771440257497,29.11377489,81.059,80.992,35.28284216]
[1771440257693,29.11377489,81.059,80.97,35.28284216]
[1771440257898,5.0,81.085,80.949,2.14816141]
[1771440257899,8.35428971,81.04,80.96,8.35428971]
[1771440258099,29.19986767,81.039,80.961,35.28284216]
[1771440258291,40.31156767,81.032,80.965,11.1208]
[1771440258805,29.19986767,81.031,80.961,35.28284216]
[1771440259207,29.19986767,81.031,80.972,11.1199]
[1771440259605,29.19986767,81.031,80.961,35.28284216]
[1771440260298,29.19986767,81.031,80.962,35.28284216]
[1771440260605,29.19986767,81.031,80.949,2.14816141]
[1771440260802,59.1255,81.061,80.95,35.28284216]
[1771440260803,29.21348739,81.029,80.95,35.28284216]
[1771440260992,18.05312505,81.06,80.94,8.35428971]
[1771440260993,30.38539226,81.025,80.952,35.28284216]
[1771440261196,30.38539226,81.043,80.961,35.28284216]
[1771440261600,30.38539226,81.043,80.98,46.40164216]
[1771440261803,30.38539226,81.043,80.981,35.28284216]
[1771440262404,30.46825168,81.059,80.983,35.28284216]
[1771440262600,8.35428971,81.05,80.961,35.28284216]
[1771440262805,30.46825168,81.058,80.981,35.28284216]
[1771440263209,41.67663102,81.055,80.986,35.28284216]
[1771440263907,11.1096,81.048,80.986,35.28284216]
[1771440264103,30.64772282,81.048,80.986,35.28284216]
[1771440264305,11.11,81.045,80.986,35.28284216]
[1771440265010,11.1116,81.033,80.986,35.28284216]
[1771440265210,30.64772282,81.048,80.986,35.28284216]
[1771440266011,29.60306171,81.065,80.991,35.28284216]
[1771440266211,29.60306171,81.065,81.0,35.28284216]
[1771440266406,11.1079,81.06,81.0,35.28284216]
[1771440266815,29.60306171,81.065,81.012,11.1144]
[1771440267212,29.88164664,81.083,81.013,35.28284216]
[1771440267510,29.88164664,81.104,81.019,35.28284216]
[1771440267710,29.88164664,81.104,81.031,35.28284216]
[1771440267907,29.88164664,81.104,81.03,8.35428971]
[1771440267908,11.1027,81.098,81.041,35.28284216]
[1771440268614,29.88164664,81.104,81.033,35.28284216]
[1771440269411,16.1045,81.085,81.033,35.28284216]
[1771440270215,5.0,81.085,81.038,11.1108]
[1771440270901,11.1046,81.084,81.033,35.28284216]
[1771440271406,5.0,81.085,81.035,35.28284216]
[1771440271712,5.0,81.085,81.041,35.28284216]
[1771440272302,5.0,81.085,81.043,35.28284216]
[1771440273406,5.0,81.085,81.043,46.39304216]
[1771440275414,5.0,81.085,81.049,11.1092]
[1771440276006,5.0,81.085,81.056,11.1083]
[1771440276206,30.9429036,81.116,81.057,35.28284216]
[1771440276715,30.9429036,81.116,81.06,11.1077]
[1771440277614,30.9429036,81.116,81.06,46.39054216]
[1771440278217,30.9429036,81.116,81.067,11.1068]
[1771440278521,34.24342406,81.134,81.06,43.63713187]
[1771440279210,34.24342406,81.134,81.09,11.1036]
[1771440279721,34.24342406,81.152,81.1,11.1023]
[1771440280323,34.24342406,81.152,81.092,11.1034]
[1771440280826,45.33872406,81.152,81.099,11.1024]
[1771440281517,34.24342406,81.152,81.106,11.1014]
[1771440282028,179.06380027,81.138,81.113,11.1005]
[1771440282226,140.12720027,81.138,81.113,11.1005]
[1771440282412,34.24342406,81.152,81.113,11.1005]
[1771440282817,34.24342406,81.17,81.123,11.0992]
[1771440283117,34.24342406,81.17,81.096,35.28284216]
[1771440283315,34.24342406,81.17,81.111,35.28284216]
[1771440283916,42.59771377,81.17,81.087,35.28284216]
[1771440284124,34.24342406,81.149,81.071,35.28284216]
[1771440284720,34.24342406,81.142,81.071,35.28284216]
[1771440285818,37.47578614,81.139,81.071,35.28284216]
[1771440286019,37.53448979,81.129,81.051,36.51264564]